bitfinex/quotes_ETHUSD_20250115
["timestamp","ask_amount","ask_price","bid_price","bid_amount"]
[1736972622181,2.8856,3465.5,3465.1,2.0]
[1736972622494,2.88542,3465.7,3465.1,2.0]
[1736972623061,1.5185,3465.9,3465.1,2.0]
[1736972623255,1.5185,3465.9,3464.5,101.663]
[1736972623256,0.192,3465.8,3465.5,2.0]
[1736972623460,0.192,3465.8,3465.1,2.0]
[1736972623779,2.88625,3464.7,3464.3,2.0]
[1736972623982,1.51813,3465.5,3464.3,2.0]
[1736972624190,2.88624,3464.8,3464.3,2.0]
[1736972624496,2.88575,3465.3,3464.3,2.0]
[1736972624659,2.88644,3464.5,3464.3,2.0]
[1736972625275,2.88628,3464.7,3464.3,2.0]
[1736972625520,2.88642,3464.5,3464.3,2.0]
[1736972625726,2.8865,3464.4,3464.3,2.0]
[1736972626622,3.9965,3464.4,3464.3,2.0]
[1736972626826,2.88683,3464.1,3463.8,2.0]
[1736972626973,2.88691,3463.9,3463.8,2.0]
[1736972628891,1.5185,3464.2,3463.8,2.0]
[1736972629091,1.11,3463.9,3463.8,2.0]
[1736972630318,3.99691,3463.9,3463.8,2.0]
[1736972630819,3.028191,3463.9,3463.3,2.0]
[1736972631020,0.55,3463.8,3462.9,2.0]
[1736972631194,2.88753,3463.2,3462.9,2.0]
[1736972631529,2.88734,3463.4,3462.9,2.0]
[1736972633279,0.193,3463.7,3463.4,2.0]
[1736972633917,1.303,3463.7,3463.4,2.0]
[1736972634215,1.11,3463.7,3463.4,2.0]
[1736972636288,1.11,3463.7,3463.5,3.0]
[1736972636434,1.11,3463.7,3463.6,7.47426]
[1736972636435,2.22,3463.7,3463.6,7.47426]
[1736972637024,2.22,3463.7,3463.6,4.5871]
[1736972638843,3.33,3463.7,3463.6,4.5871]
[1736972639925,3.33,3463.7,3463.6,7.47426]
[1736972640444,3.33,3463.7,3463.6,4.5871]
[1736972640605,3.33,3463.7,3463.6,2.0]
[1736972641242,4.44,3463.7,3463.6,2.0]
[1736972643503,4.44,3463.7,3463.6,6.47426]
[1736972643707,5.55,3463.7,3463.6,9.47426]
[1736972644124,5.55,3463.7,3463.6,6.5871]
[1736972645416,5.55,3463.7,3463.6,2.0]
[1736972646119,6.66,3463.7,3463.6,2.0]
[1736972647519,9.54708,3463.7,3463.6,2.0]
[1736972647727,9.95035896,3463.7,3463.6,2.0]
[1736972648637,7.77,3463.7,3463.6,2.0]
[1736972648858,10.65708,3463.7,3463.6,2.0]
[1736972649244,2.88717,3463.6,3463.1,2.0]
[1736972649441,2.88717,3463.6,3463.2,2.0]
[1736972649740,4.41922,3463.5,3463.2,2.0]
[1736972649906,1.5319,3463.5,3463.2,2.0]
[1736972650110,10.6571,3463.7,3463.2,2.0]
[1736972650356,12.1172,3463.7,3463.2,2.0]
[1736972650650,9.2301,3463.7,3463.2,2.0]
[1736972650835,7.77,3463.7,3463.6,2.0]
[1736972651037,8.88,3463.7,3463.6,2.0]
[1736972652130,11.76708,3463.7,3463.6,2.0]
[1736972652315,4.41925,3463.4,3463.2,2.0]
[1736972652513,1.5319,3463.4,3463.2,2.0]
[1736972652709,2.8872,3463.6,3463.2,2.0]
[1736972653109,10.4119,3463.7,3463.2,2.0]
[1736972653326,10.183,3463.7,3463.2,2.0]
[1736972653857,9.99,3463.7,3463.6,2.0]
[1736972654518,12.87708,3463.7,3463.6,2.0]
[1736972654961,9.99,3463.7,3463.1,2.0]
[1736972655176,2.88733,3463.5,3463.4,0.43686046]
[1736972655326,4.41923,3463.5,3463.4,0.43686046]
[1736972655654,9.99,3463.7,3463.4,0.43686046]
[1736972655655,12.87711,3463.7,3463.4,0.43686046]
[1736972655855,1.11,3463.5,3463.4,0.43686046]
[1736972656332,1.11,3463.5,3463.1,2.0]
[1736972656775,1.11,3463.5,3463.1,3.6052]
[1736972658275,2.22,3463.5,3463.2,1.6052]
[1736972658462,2.22,3463.5,3463.4,4.6052]
[1736972659334,2.22,3463.5,3463.4,1.6052]
[1736972660029,2.22,3463.5,3463.4,2.0]
[1736972660875,3.33,3463.5,3463.4,2.0]
[1736972661889,3.33,3463.5,3463.4,2.20958975]
[1736972662792,6.3049,3463.5,3463.4,2.20958975]
[1736972662964,4.773,3463.5,3463.4,2.20958975]
[1736972663173,5.883,3463.5,3463.4,2.20958975]
[1736972663554,8.77025,3463.5,3463.4,2.20958975]
[1736972665505,4.44,3463.5,3463.4,2.20958975]
[1736972665650,5.55,3463.5,3463.4,2.20958975]
[1736972668393,6.66,3463.5,3463.4,2.20958975]
[1736972669006,9.54725,3463.5,3463.4,2.20958975]
[1736972669295,6.66,3463.5,3463.4,2.20958975]
[1736972670364,9.54725,3463.5,3463.4,2.20958975]
[1736972670565,11.611975,3463.5,3463.4,2.20958975]
[1736972670793,12.721975,3463.5,3463.4,2.20958975]
[1736972671184,12.721975,3463.5,3463.4,0.20958975]
[1736972673101,13.831975,3463.5,3463.4,0.20958975]
[1736972673302,2.88735,3463.4,3463.1,0.20958975]
[1736972673518,2.3822075,3463.4,3463.1,0.20958975]
[1736972673665,4.4194,3463.2,3463.1,0.20958975]
[1736972673860,5.2695775,3463.4,3463.1,0.20958975]
[1736972674405,2.88741,3463.3,3463.2,0.20958975]
[1736972675586,3.99741,3463.3,3463.2,0.20958975]
[1736972675806,6.17175425,3463.3,3463.2,0.20958975]
[1736972676268,1.11,3463.3,3463.2,0.20958975]
[1736972676898,3.99741,3463.3,3463.2,0.20958975]
[1736972678001,5.10741,3463.3,3463.2,0.20958975]
[1736972678207,2.22,3463.3,3463.2,0.20958975]
[1736972679177,5.10741,3463.3,3463.2,0.20958975]
[1736972679401,6.678541,3463.3,3463.2,0.20958975]
[1736972680832,4.901131,3463.3,3463.2,0.20958975]
[1736972680982,3.33,3463.3,3463.2,0.20958975]
[1736972681184,3.33,3463.3,3463.2,1.84938975]
[1736972683100,4.44,3463.3,3463.2,1.84938975]
[1736972683304,4.44,3463.3,3463.2,2.3738133]
[1736972684821,4.44,3463.3,3463.2,0.7340133]
[1736972685729,5.55,3463.3,3463.2,0.7340133]
[1736972688236,6.66,3463.3,3463.2,0.7340133]
[1736972689820,8.521917,3463.3,3463.2,0.7340133]
[1736972690738,9.631917,3463.3,3463.2,0.7340133]
[1736972693634,10.741917,3463.3,3463.2,0.7340133]
[1736972695807,8.88,3463.3,3463.2,5.2450133]
[1736972696144,8.54629,3463.3,3463.2,8.7950133]
[1736972696296,1.32774,3463.3,3463.2,108.7950133]
[1736972696638,8.88,3463.5,3463.4,10.06083]
[1736972696639,8.591674,3463.5,3463.4,10.06083]
[1736972696841,6.925074,3463.5,3463.4,10.06083]
[1736972696999,5.775074,3463.5,3463.4,10.06083]
[1736972697200,7.26209821,3463.7,3463.6,3.13716]
[1736972697424,6.11209821,3463.7,3463.6,18.40666]
[1736972697891,4.96209821,3463.7,3463.6,18.40666]
[1736972698305,1.11,3463.8,3463.6,18.40666]
[1736972698306,1.5641,3465.9,3465.2,2.0]
[1736972698505,0.666927,3465.7,3465.6,2.0]
[1736972699640,1.11,3466.0,3465.6,2.0]
[1736972700228,1.11,3466.0,3465.7,1.6235]
[1736972700823,2.22,3465.8,3465.7,1.6235]
[1736972701024,2.22,3465.8,3465.7,1.83308975]
[1736972701755,2.22,3465.8,3465.7,5.09343036]
[1736972701962,2.22,3465.8,3465.7,7.97884036]
[1736972703231,3.33,3465.8,3465.7,7.97884036]
[1736972703413,3.33,3465.8,3465.7,7.09343036]
[1736972703614,3.33,3465.8,3465.7,4.09343036]
[1736972704015,3.33,3465.8,3465.7,7.09343036]
[1736972705468,3.33,3465.8,3465.7,5.46993036]
[1736972705646,4.44,3465.8,3465.7,2.46993036]
[1736972706755,4.44,3465.8,3465.7,2.26034061]
[1736972707111,4.44,3465.8,3465.7,2.0]
[1736972708117,5.55,3465.8,3465.7,2.0]
[1736972709516,6.216,3465.8,3465.7,2.0]
[1736972710128,5.55,3465.8,3465.7,2.0]
[1736972710547,6.66,3465.8,3465.7,7.88541]
[1736972710859,6.66,3465.8,3465.7,9.46581]
[1736972711164,1e-05,3465.8,3465.7,20.10581]
[1736972711313,1e-05,3465.8,3465.7,10.01581]
[1736972711521,1e-05,3465.8,3465.7,9.72615061]
[1736972711851,1e-05,3465.8,3465.7,5.26034061]
[1736972712050,1e-05,3466.0,3465.7,2.26034061]
[1736972712346,1e-05,3466.0,3465.7,2.46692522]
[1736972712972,1.11001,3466.0,3465.7,2.20658461]
[1736972713137,5.55,3466.4,3466.1,2.0]
[1736972714019,5.55,3466.4,3466.2,2.88499]
[1736972714666,5.55,3466.4,3466.3,2.88492]
[1736972714822,5.55,3466.4,3466.3,5.88492]
[1736972715166,5.14773078,3466.4,3466.3,5.88492]
[1736972715469,6.25773078,3466.4,3466.3,7.46532]
[1736972715655,6.25773078,3466.4,3466.3,7.72566061]
[1736972715972,6.25773078,3466.4,3466.3,3.26034061]
[1736972716171,6.25773078,3466.4,3466.3,0.26034061]
[1736972716980,6.25773078,3466.4,3466.1,2.20653494]
[1736972717521,7.36773078,3466.4,3466.1,2.20653494]
[1736972718868,7.36773078,3466.4,3466.1,2.0]
[1736972719071,7.36773078,3466.4,3466.2,3.0]
[1736972719272,7.36773078,3466.4,3466.1,2.0]
[1736972719572,8.10450386,3466.4,3466.2,0.26034061]
[1736972719967,9.21450386,3466.4,3466.2,0.26034061]
[1736972720560,1.5269,3466.3,3466.2,0.26034061]
[1736972720766,4.41182,3466.3,3466.2,0.26034061]
[1736972721484,4.41182,3466.3,3466.1,2.0]
[1736972721692,1.36263239,3466.2,3466.1,2.0]
[1736972722490,2.88527,3465.9,3465.7,2.26034061]
[1736972722847,4.41223,3465.8,3465.7,0.26034061]
[1736972723047,4.96223,3465.8,3465.7,0.26034061]
[1736972723281,5.746969,3465.8,3465.7,0.26034061]
[1736972723680,0.55,3465.7,3465.4,0.26034061]
[1736972723996,4.41248,3465.5,3465.4,0.26034061]
[1736972724382,4.96248,3465.5,3465.4,0.26034061]
[1736972724548,4.96248,3465.5,3464.2,1.586]
[1736972724549,0.55,3465.1,3463.8,2.0]
[1736972724747,1.5269,3464.0,3463.3,2.0]
[1736972724975,3.07892,3463.9,3463.3,2.0]
[1736972725191,2.887,3463.8,3463.3,2.0]
[1736972725396,2.88719,3463.6,3463.3,2.0]
[1736972725705,1.5269,3464.0,3463.9,2.0]
[1736972725849,0.192,3464.2,3463.9,2.0]
[1736972726245,0.192,3464.6,3464.3,2.0]
[1736972726735,1.5269,3464.8,3464.3,2.0]
[1736972726941,0.192,3464.8,3464.7,2.0]
[1736972727140,1.302,3464.8,3464.7,2.0]
[1736972727740,1.11,3464.8,3464.7,2.0]
[1736972728792,1.11,3464.8,3464.7,5.0]
[1736972728993,1.11,3464.8,3464.7,4.88625]
[1736972729190,1.11,3464.8,3464.7,9.47225]
[1736972729415,1.11,3464.8,3464.7,102.0]
[1736972729605,2.22,3464.8,3464.7,2.0]
[1736972730337,5.50005,3464.8,3464.7,2.0]
[1736972730633,5.50005,3464.8,3463.8,1.586]
[1736972730840,2.88627,3464.7,3463.9,100.0]
[1736972731133,2.22,3464.8,3464.5,2.0]
[1736972731506,2.0769,3464.7,3463.7,2.0]
[1736972731809,2.88652,3464.4,3464.1,2.0]
[1736972732009,2.88659,3464.3,3464.1,2.0]
[1736972732224,2.88654,3464.4,3464.1,2.0]
[1736972733608,2.6369,3464.7,3464.5,2.0]
[1736972733800,1.11,3464.7,3464.5,2.0]
[1736972734240,2.88633,3464.6,3464.5,2.0]
[1736972734444,3.507963,3464.6,3464.5,2.0]
[1736972734608,0.621633,3464.6,3464.5,2.0]
[1736972734795,2.22,3464.7,3464.5,2.0]
[1736972735522,5.10625,3464.7,3464.5,2.0]
[1736972735841,2.88635,3464.6,3464.2,2.0]
[1736972736395,2.88658,3464.3,3464.2,2.0]
[1736972736796,1.549,3464.2,3462.9,1.5316]
[1736972736997,2.88699,3463.9,3463.6,2.0]
[1736972737203,2.88699,3463.9,3463.8,0.25981571]
[1736972737913,3.07899,3463.9,3463.8,0.25981571]
[1736972738509,5.17799,3463.9,3463.8,0.25981571]
[1736972738849,5.17799,3463.9,3463.1,0.25981571]
[1736972739041,0.549889,3463.8,3463.1,0.25981571]
[1736972739414,2.88734,3463.4,3463.1,0.25981571]
[1736972739830,2.8872,3463.6,3463.1,0.25981571]
[1736972740012,2.8872,3463.6,3463.0,2.0]
[1736972740013,3.436909,3463.8,3463.0,2.0]
[1736972740210,0.192,3463.8,3463.5,2.0]
[1736972741253,1.11,3463.9,3463.5,2.0]
[1736972741416,1.302,3463.9,3463.5,2.0]
[1736972741607,5.10696,3463.9,3463.5,2.0]
[1736972741955,5.10696,3463.9,3463.4,0.25981571]
[1736972741956,4.43625,3463.5,3463.4,0.25981571]
[1736972742139,4.899075,3463.5,3463.4,0.25981571]
[1736972742934,2.88738,3463.4,3463.0,2.0]
[1736972743476,2.88744,3463.3,3463.0,2.0]
[1736972744156,1.11,3463.3,3463.0,2.0]
[1736972746439,2.412,3463.3,3463.0,2.0]
[1736972747632,5.29948,3463.3,3463.0,2.0]
[1736972748529,2.412,3463.3,3463.0,2.0]
[1736972748945,3.522,3463.3,3463.0,2.0]
[1736972749150,4.162934,3463.3,3463.0,2.0]
[1736972750474,3.33,3463.3,3463.0,2.0]
[1736972751241,3.33,3463.3,3463.1,4.5723]
[1736972751581,3.33,3463.3,3463.2,7.48867229]
[1736972751582,2.95431977,3463.3,3463.2,7.48867229]
[1736972751768,2.95431977,3463.3,3463.2,7.71961571]
[1736972752669,2.95431977,3463.3,3463.2,4.83211571]
[1736972752888,2.95431977,3463.3,3463.2,4.5723]
[1736972753096,2.95431977,3463.3,3463.2,6.83344127]
[1736972753381,2.95431977,3463.3,3463.2,3.83344127]
[1736972753746,4.06431977,3463.3,3463.2,3.83344127]
[1736972754845,4.06431977,3463.3,3463.2,2.26114127]
[1736972755898,4.06431977,3463.3,3463.2,9.78794127]
[1736972756362,5.17431977,3463.3,3463.2,9.78794127]
[1736972757182,4.11509959,3463.3,3463.2,9.78794127]
[1736972758774,5.22509959,3463.3,3463.2,9.78794127]
[1736972761077,6.33509959,3463.3,3463.2,9.78794127]
[1736972761400,5.68585258,3463.3,3463.2,9.78794127]
[1736972761898,5.68585258,3463.3,3463.2,18.54794127]
[1736972762266,5.68585258,3463.3,3463.2,5.26114127]
[1736972762672,5.68585258,3463.3,3463.2,2.26114127]
[1736972762860,6.25443784,3463.3,3463.2,0.26114127]
[1736972763483,7.36443784,3463.3,3463.2,0.26114127]
[1736972765409,6.79585258,3463.3,3463.2,0.26114127]
[1736972765903,7.90585258,3463.3,3463.2,0.26114127]
[1736972766890,7.90585258,3463.3,3462.9,2.0]
[1736972767092,7.90585258,3463.3,3463.2,0.26184827]
[1736972767911,12.52426258,3463.3,3463.2,0.26184827]
[1736972768114,14.32668884,3463.3,3463.2,0.26184827]
[1736972768274,15.58214799,3463.3,3463.2,0.26184827]
[1736972768872,18.58214799,3463.3,3463.2,8.27e-06]
[1736972769512,2.888,3462.7,3462.1,2.0]
[1736972770134,2.88806,3462.6,3462.1,2.0]
[1736972770270,0.55,3462.9,3461.7,2.0]
[1736972770271,1.539,3462.4,3461.7,2.0]
[1736972770473,2.88846,3462.1,3461.7,2.0]
[1736972770702,3.08046,3462.1,3461.7,2.0]
[1736972770890,2.88851,3462.0,3461.7,2.0]
[1736972771375,1.539,3462.0,3461.3,2.0]
[1736972771625,2.88873,3461.8,3461.3,2.0]
[1736972771776,0.3459,3461.9,3461.3,2.0]
[1736972772315,2.88898,3461.5,3461.3,2.0]
[1736972772517,3.23453,3461.9,3460.3,3.065783]
[1736972772518,2.88918,3461.2,3460.8,2.0]
[1736972772720,1.539,3461.4,3460.8,2.0]
[1736972772907,3.04299,3461.3,3460.8,2.0]
[1736972773105,2.88917,3461.2,3460.8,2.0]
[1736972773425,0.1539,3461.3,3460.8,2.0]
[1736972773724,2.649,3461.4,3460.8,2.0]
[1736972774023,1.11,3461.4,3461.2,2.0]
[1736972774323,3.43909,3461.3,3460.8,2.0]
[1736972774528,1.539,3461.2,3460.8,2.0]
[1736972774672,4.4282,3461.2,3460.8,2.0]
[1736972774877,2.14782,3461.2,3460.8,2.0]
[1736972775108,2.88925,3461.1,3460.3,2.175883]
[1736972775314,1.539,3460.6,3460.3,2.175883]
[1736972775493,0.192,3460.5,3460.3,0.175883]
[1736972777978,1.302,3460.5,3460.3,0.175883]
[1736972778223,1.11,3460.5,3460.3,0.175883]
[1736972778405,1.11,3460.5,3460.3,8.935883]
[1736972778583,1.11,3461.1,3460.8,2.0]
[1736972779436,4.69318,3461.1,3460.6,2.0]
[1736972779642,2.88952,3460.8,3460.3,8.935883]
[1736972779849,4.4383,3460.7,3460.3,8.935883]
[1736972780232,4.69319,3461.1,3460.5,2.0]
[1736972780448,1.11,3460.7,3460.5,2.0]
[1736972781569,1.11,3460.7,3460.6,8.76]
[1736972781723,1.11,3460.7,3460.6,16.30597]
[1736972782862,2.22,3460.7,3460.6,12.4163]
[1736972783068,2.22,3460.7,3460.6,13.64967]
[1736972784066,2.22,3460.7,3460.6,18.30597]
[1736972784624,1.11,3461.1,3461.0,16.64933]
[1736972784843,1.11,3461.1,3461.0,18.30563]
[1736972785239,2.22,3461.1,3461.0,18.30563]
[1736972786045,2.22,3461.1,3461.0,12.4163]
[1736972786798,2.22,3461.1,3461.0,15.30563]
[1736972787691,3.33,3461.1,3461.0,15.30563]
[1736972787860,3.33,3461.1,3461.0,12.4163]
[1736972788056,3.33,3461.1,3461.0,2.0]
[1736972789283,3.33,3461.1,3461.0,4.88933]
[1736972789776,3.33,3461.1,3461.0,2.0]
[1736972789981,4.44,3461.1,3461.0,2.0]
[1736972790306,4.44,3461.1,3460.7,8.76]
[1736972790307,4.995,3461.1,3460.7,8.76]
[1736972790518,7.88427,3461.1,3460.6,2.0]
[1736972791017,4.995,3461.1,3460.6,2.0]
[1736972791979,7.88426,3461.1,3460.6,2.0]
[1736972792173,4.995,3461.1,3460.6,2.0]
[1736972792413,3.54372,3461.0,3460.3,0.175883]
[1736972792620,1.5487,3460.7,3460.3,0.175883]
[1736972792785,6.105,3461.1,3460.3,0.175883]
[1736972792786,7.0987,3461.1,3460.6,2.0]
[1736972792994,5.55,3461.1,3461.0,2.0]
[1736972794795,6.66,3461.1,3461.0,2.0]
[1736972797132,8.3128,3461.1,3460.7,8.76]
[1736972797333,13.27354,3461.1,3460.7,8.76]
[1736972797536,2.8894,3461.0,3460.7,8.76]
[1736972798638,10.38428,3461.1,3460.7,8.76]
[1736972799009,13.27357,3461.1,3460.7,8.76]
[1736972799494,0.55,3461.0,3460.7,8.76]
[1736972799695,2.88962,3460.7,3460.3,0.175883]
[1736972800126,2.88983,3460.4,3460.3,0.175883]
[1736972800639,5.09263,3460.4,3460.3,0.175883]
[1736972800850,5.09263,3460.4,3459.5,0.625]
[1736972801010,1.6528,3459.6,3459.5,0.625]
[1736972801841,1.8448,3459.6,3459.5,0.625]
[1736972802148,3.428318,3459.6,3459.5,0.625]
[1736972802310,6.318818,3459.6,3459.5,0.625]
[1736972803496,6.868818,3459.6,3459.5,0.625]
[1736972804052,9.868818,3459.6,3459.5,0.625]
[1736972804199,2.89168,3458.2,3457.5,2.0]
[1736972804544,0.192,3458.1,3457.9,2.0]
[1736972804750,0.192,3458.6,3458.3,2.0]
[1736972805049,6.15573114,3459.6,3458.7,2.0]
[1736972805050,0.192,3459.0,3458.7,2.0]
[1736972805214,2.89124,3458.8,3458.1,2.0]
[1736972805414,2.89127,3458.7,3458.1,2.0]
[1736972806154,2.89135,3458.6,3458.1,2.0]
[1736972806356,0.344135,3458.6,3458.1,2.0]
[1736972806656,2.89148,3458.5,3458.1,2.0]
[1736972806866,3.44131,3458.7,3457.7,2.0]
[1736972807026,2.89159,3458.4,3457.7,2.0]
[1736972807410,1.302,3458.5,3457.7,2.0]
[1736972807653,4.1935,3458.5,3457.7,2.0]
[1736972807859,0.41935,3458.4,3457.7,2.0]
[1736972808153,0.55,3458.3,3457.7,2.0]
[1736972808312,1.6528,3458.4,3457.7,2.0]
[1736972808911,1.6528,3458.4,3457.1,4.5392]
[1736972808912,1.11,3458.5,3458.2,2.0]
[1736972809352,2.22,3458.5,3458.2,2.0]
[1736972811751,3.33,3458.5,3458.2,2.0]
[1736972814362,4.44,3458.5,3458.2,2.0]
[1736972815533,4.44,3458.5,3458.2,3.5282]
[1736972816558,5.55,3458.5,3458.2,2.0]
[1736972816866,6.1242,3458.5,3458.2,2.0]
[1736972817169,5.55,3458.5,3458.2,2.0]
[1736972819075,6.66,3458.5,3458.2,2.0]
[1736972821337,7.77,3458.5,3458.2,2.0]
[1736972822567,7.77,3458.5,3458.4,5.89151]
[1736972822723,7.77,3458.5,3458.4,7.44871]
[1736972823737,8.88,3458.5,3458.4,2.0]
[1736972824066,12.6595,3458.5,3458.0,2.0]
[1736972824282,9.768,3458.5,3458.0,2.0]
[1736972824439,8.88,3458.5,3458.4,2.0]
[1736972824962,8.88,3458.5,3458.0,2.0]
[1736972825166,1.5458,3458.3,3458.0,2.0]
[1736972825321,8.88,3458.5,3458.0,2.0]
[1736972825526,1.351515,3458.4,3458.0,2.0]
[1736972825721,8.88,3458.5,3458.4,2.0]
[1736972826156,9.99,3458.5,3458.4,2.0]
[1736972826363,2.8916,3458.3,3457.7,3.5572]
[1736972826521,9.99,3458.5,3457.7,3.5572]
[1736972826923,9.99,3458.5,3458.1,2.0]
[1736972827166,10.76851586,3458.5,3458.1,2.0]
[1736972828156,2.89151,3458.4,3458.1,2.0]
[1736972828521,4.00151,3458.4,3458.1,2.0]
[1736972828922,1.11,3458.4,3458.1,2.0]
[1736972829126,0.198,3458.3,3457.7,4.44929]
[1736972830828,0.198,3458.3,3457.7,2.89209]
[1736972831028,1.308,3458.3,3457.7,2.89209]
[1736972831940,1.11,3458.3,3458.1,2.0]
[1736972833322,2.22,3458.3,3458.1,2.0]
[1736972834738,2.22,3458.3,3457.8,2.0]
[1736972834939,1.14097042,3458.2,3457.7,1.5572]
[1736972835142,1.14097042,3458.2,3457.4,2.89231]
[1736972835143,2.89185,3458.0,3457.4,2.0]
[1736972835773,4.00185,3458.0,3457.4,2.0]
[1736972835942,0.66886204,3457.9,3457.4,2.0]
[1736972836459,1.11,3458.0,3457.8,2.0]
[1736972838173,2.22,3458.0,3457.8,2.0]
[1736972838374,2.22,3458.0,3457.9,2.89192]
[1736972839142,2.22,3458.0,3457.9,5.89192]
[1736972839347,2.22,3458.0,3457.9,7.44912]
[1736972840578,3.33,3458.0,3457.9,7.44912]
[1736972840747,3.33,3458.0,3457.9,4.5572]
[1736972840951,3.33,3458.0,3457.9,7.44912]
[1736972841141,3.33,3458.0,3457.9,4.5572]
[1736972843095,4.44,3458.0,3457.9,4.5572]
[1736972843271,4.44,3458.0,3457.9,1.5572]
[1736972844166,4.44,3458.0,3457.8,2.0]
[1736972845113,4.44,3458.0,3457.9,2.89192]
[1736972845575,5.55,3458.0,3457.9,2.89192]
[1736972846487,5.55,3458.0,3457.9,7.49522]
[1736972847831,0.54064,3458.3,3458.2,4.89167]
[1736972847972,1.6398,3460.3,3459.9,2.0]
[1736972848171,1.6398,3460.6,3459.9,2.0]
[1736972848377,1.2985428,3460.8,3460.3,2.0]
[1736972848839,1.2985428,3460.8,3460.7,2.0]
[1736972849134,8.88,3461.1,3460.7,2.0]
[1736972850399,9.99,3461.1,3460.7,2.0]
[1736972850606,4.52915,3461.0,3460.6,2.0]
[1736972852102,2.88944,3460.9,3460.2,2.0]
[1736972852303,2.88959,3460.7,3460.2,2.0]
[1736972852824,2.88992,3460.3,3459.8,2.0]
[1736972853010,1.6398,3460.1,3459.5,4.998]
[1736972853198,1.6398,3460.1,3459.5,2.0]
[1736972853405,2.112665,3460.1,3459.5,2.0]
[1736972854132,2.89024,3460.0,3459.5,2.0]
[1736972854304,2.89028,3459.9,3459.5,2.0]
[1736972854946,3.44023,3460.0,3458.9,2.0]
[1736972855250,1.6398,3460.1,3459.5,2.0]
[1736972855404,1.309,3460.0,3459.5,2.0]
[1736972855609,0.583881,3459.9,3459.5,2.0]
[1736972857307,3.474171,3459.9,3459.5,2.0]
[1736972857505,2.89034,3459.8,3459.1,2.0]
[1736972858809,1.693881,3459.9,3459.1,2.0]
[1736972859748,1.11,3459.9,3459.7,2.0]
[1736972860156,2.22,3459.9,3459.8,2.89034]
[1736972860655,2.22,3459.9,3459.8,4.47514]
[1736972860807,2.22,3459.9,3459.8,7.47514]
[1736972861951,0.77487,3459.9,3459.8,7.47514]
[1736972862136,1.11,3460.0,3459.9,5.89025]
[1736972862455,1.11,3460.0,3459.9,7.47505]
[1736972862653,2.22,3460.0,3459.9,107.47505]
[1736972865051,3.33,3460.0,3459.9,107.47505]
[1736972867531,4.44,3460.0,3459.9,107.47505]
[1736972870111,5.55,3460.0,3459.9,107.47505]
[1736972872547,6.66,3460.0,3459.9,107.47505]
[1736972873554,6.66,3460.0,3459.9,107.47305]
[1736972874468,6.66,3460.0,3459.9,7.47305]
[1736972875025,7.77,3460.0,3459.9,7.47305]
[1736972875334,7.77,3460.0,3459.9,7.88825]
[1736972875538,8.547,3460.0,3459.9,2.0]
[1736972875921,8.547,3460.0,3459.6,2.0]
[1736972876372,8.547,3460.0,3459.8,2.8903]
[1736972876525,7.77,3460.0,3459.9,5.89025]
[1736972877468,8.88,3460.0,3459.9,5.89025]
[1736972878266,8.88,3460.0,3459.9,3.0]
[1736972878439,10.3919,3460.0,3459.9,3.0]
[1736972879568,10.3919,3460.0,3459.6,2.0]
[1736972879861,11.5019,3460.0,3459.6,2.0]
[1736972880068,12.65209,3460.0,3459.6,2.0]
[1736972881272,2.89029,3459.9,3459.2,2.0]
[1736972881473,1.5119,3459.8,3458.8,2.0]
[1736972881704,3.63943,3459.7,3458.6,2.89133]
[1736972882405,1.5119,3459.6,3458.7,2.89124]
[1736972882697,0.626133,3459.5,3458.9,2.0]
[1736972883057,0.55,3459.4,3458.9,2.0]
[1736972883258,0.55,3459.4,3458.4,2.8915]
[1736972883259,4.40267,3459.3,3458.4,2.0]
[1736972883504,4.40267,3459.3,3458.4,5.0]
[1736972883723,1.5119,3459.3,3458.8,2.0]
[1736972883931,0.5578643,3459.2,3458.8,2.0]
[1736972884060,0.5578643,3459.2,3458.4,2.0]
[1736972884357,0.55,3459.1,3458.4,2.0]
[1736972884705,0.5578643,3459.2,3457.8,1.6127]
[1736972884706,4.40292,3459.0,3458.1,2.0]
[1736972884911,2.89134,3458.6,3458.1,2.0]
[1736972885195,1.5119,3458.5,3458.1,2.0]
[1736972885401,1.7109,3458.9,3458.5,2.0]
[1736972885559,1.5119,3458.9,3458.5,2.0]
[1736972885759,1.11,3459.1,3458.9,2.0]
[1736972886369,1.11,3459.1,3458.6,2.0]
[1736972886570,1.11,3459.1,3459.0,2.0]
[1736972886758,1.11,3459.1,3459.0,4.891]
[1736972886955,1.11,3459.1,3459.0,5.0]
[1736972887394,2.22,3459.1,3458.6,2.0]
[1736972887601,2.22,3459.1,3459.0,4.891]
[1736972888206,2.22,3459.1,3459.0,7.891]
[1736972890011,3.33,3459.1,3459.0,7.891]